[Event "FRA-chT Top 12 2019"]
[Site "Brest"]
[Date "2019.05.22"]
[Round "5.8"]
[White "De Seroux, Camille"]
[Black "Verot, Melanie"]
[Result "1-0"]
[ECO "B24"]
[WhiteElo "2143"]
[BlackElo "2069"]
[Annotator "NA RC"]
[PlyCount "91"]
[EventDate "2019.05.18"]
[EventType "team-tourn"]
[EventCountry "FRA"]
[SourceTitle "playchess.com"]
[Source "ChessBase"]
[SourceQuality "1"]
[TimeControl "40/5400+30:1800+30"]

1. e4 {[%emt 0:00:00]} c5 {[%emt 0:00:00]} 2. Nc3 {[%emt 0:00:00]} Nc6 {[%emt 0:00:47]} 3. Bb5 {[%emt 0:00:00]} Nd4 {[%emt 0:01:03]} 4. Bc4 {[%emt 0:00:29]} e6 {[%emt 0:00:58]} 5. Nf3 {[%emt 0:00:15]} Nf6 {[%emt 0:00:28]} 6. O-O {[%emt 0:00:12]} a6 {[%emt 0:00:34]} 7. d3 {[%emt 0:00:14] B30: Sicilian: 2...Nc6 3 Bb5, lines without ...g6} (7. Bb3 d6 8. d3 Nxb3 9. axb3 Be7 10. d4 cxd4 11. Qxd4 O-O 12. Rd1 e5 13. Qd3 h6 14. Nd2 b5 {½-½ (58) Inarkiev,E (2730)-Gelfand,B (2734) Magas 2016}) 7... b5 {[%emt 0:01:10]} 8. Bb3 {[%emt 0:00:07]} Nxb3 {[%emt 0:00:10]} 9. axb3 {[%emt 0:00:08]} Bb7 {[%emt 0:00:34]} 10. e5 {[%emt 0:00:18]} b4 {[%emt 0:01:29]} 11. Nb1 {[%emt 0:10:41]} Nd5 {[%emt 0:02:51]} 12. Nbd2 {[%emt 0:03:31]} d6 $146 {[%emt 0:06:07]} ({Predecessor:} 12... Be7 13. Nc4 O-O 14. Na5 Bc8 {0-1 (45) Shavtvaladze,N (2430)-Vouldis,A (2524) Athens 2004}) 13. Nc4 {[%emt 0:02:22]} dxe5 {[%emt 0:01:13]} 14. Nfxe5 {[%emt 0:01:14]} Bd6 {[%emt 0:12:07]} 15. Qg4 {[%emt 0:07:05]} Bxe5 {[%emt 0:01:50]} 16. Nxe5 {[%emt 0:00:11]} Qf6 {[%emt 0:01:36]} 17. Re1 {[%emt 0:02:03]} h5 {[%emt 0:01:56]} 18. Qg3 {[%emt 0:12:12]} h4 {[%emt 0:06:52]} 19. Qg4 {[%emt 0:01:01]} Ne7 {[%emt 0:07:51]} 20. h3 {[%emt 0:26:04]} Qf5 {[%emt 0:10:57]} 21. Ra5 {[%emt 0:06:22]} Qxg4 {[%emt 0:05:03]} 22. Nxg4 {[%emt 0:00:21]} Rc8 {[%emt 0:01:54]} 23. Ne5 {[%emt 0:04:23]} Nd5 {[%emt 0:02:41]} 24. Nc4 {[%emt 0:05:26]} Ke7 {[%emt 0:01:04]} 25. Re4 {[%emt 0:03:09]} f6 {[%emt 0:05:29]} 26. Re2 {[%emt 0:02:28]} g5 {[%emt 0:01:45]} 27. f3 {[%emt 0:01:37]} Rhg8 {[%emt 0:01:18]} 28. Bd2 {[%emt 0:01:28]} f5 {[%emt 0:07:44]} 29. Ne5 {[%emt 0:03:29]} Nf4 {[%emt 0:05:51]} 30. Rf2 {[%emt 0:01:04]} Nd5 {[%emt 0:02:15]} 31. Be1 {[%emt 0:00:59]} Rc7 {[%emt 0:04:08]} 32. Re2 {[%emt 0:01:50]} Nf4 {[%emt 0:00:45]} 33. Rd2 {[%emt 0:00:31]} Kf6 {[%emt 0:01:12]} 34. Rxc5 {[%emt 0:00:54]} Rh7 {[%emt 0:00:37]} 35. d4 {[%emt 0:01:07]} g4 {[%emt 0:01:13]} 36. fxg4 {[%emt 0:01:01]} Ng6 {[%emt 0:03:46]} 37. Rf2 {[%emt 0:02:19]} Rd8 {[%emt 0:00:20]} 38. Nxg6 {[%emt 0:01:27]} Kxg6 {[%emt 0:00:16]} 39. gxf5+ {[%emt 0:00:13]} exf5 {[%emt 0:00:18]} 40. Rcxf5 {[%emt 0:00:18]} Bd5 {[%emt 0:01:16]} 41. Bxb4 $18 {[%emt 0:04:10]} Be4 {[%emt 0:03:58]} 42. Rf6+ {[%emt 0:02:51]} Kh5 {[%emt 0:00:08]} 43. Re2 {[%emt 0:05:30]} Rxd4 {[%emt 0:04:07]} 44. Bc3 {[%emt 0:00:27]} Rd1+ {[%emt 0:00:04]} 45. Kf2 {[%emt 0:02:57]} Bg6 {[%emt 0:01:26]} 46. Bd2 {[%emt 0:00:11]} 1-0

[Event "FRA-chT Top 12 2019"]
[Site "Brest"]
[Date "2019.05.22"]
[Round "5.8"]
[White "Fruteau, Sabine"]
[Black "Bolon, Karelle"]
[Result "0-1"]
[ECO "A92"]
[WhiteElo "2015"]
[BlackElo "2018"]
[Annotator "NA RC"]
[PlyCount "70"]
[EventDate "2019.05.18"]
[EventType "team-tourn"]
[EventCountry "FRA"]
[SourceTitle "playchess.com"]
[Source "ChessBase"]
[SourceQuality "1"]
[TimeControl "40/5400+30:1800+30"]

1. Nf3 {[%emt 0:00:00]} e6 {[%emt 0:00:18]} 2. g3 {[%emt 0:02:27]} f5 {[%emt 0:00:28]} 3. Bg2 {[%emt 0:00:07]} Nf6 {[%emt 0:00:12]} 4. d4 {[%emt 0:00:05]} Be7 {[%emt 0:00:08]} 5. c4 {[%emt 0:01:04]} O-O {[%emt 0:00:22]} 6. Nc3 {[%emt 0:00:04]} d6 {[%emt 0:01:49]} 7. O-O {[%emt 0:00:24]} Ne4 {[%emt 0:00:30]} 8. Qc2 {[%emt 0:10:59]} Nxc3 {[%emt 0:00:39]} 9. bxc3 {[%emt 0:06:00]} Nc6 {[%emt 0:05:16]} 10. d5 {[%emt 0:23:20]} Na5 {[%emt 0:25:31]} 11. dxe6 {[%emt 0:07:08]} Bxe6 {[%emt 0:02:47]} 12. Nd4 {[%emt 0:00:13]} Bxc4 {[%emt 0:01:53]} 13. Nxf5 {[%emt 0:02:37]} Bf6 {[%emt 0:01:17]} 14. Ne3 {[%emt 0:06:03]} Be6 {[%emt 0:07:05]} 15. Rb1 {[%emt 0:04:15]} Qd7 {[%emt 0:11:00]} 16. Nd5 {[%emt 0:08:03]} Bd8 {[%emt 0:04:31]} 17. Nf4 {[%emt 0:01:46]} Bf7 {[%emt 0:01:53]} 18. h4 {[%emt 0:08:05]} c6 {[%emt 0:02:50]} 19. Be4 {[%emt 0:06:44]} h6 {[%emt 0:06:08]} 20. Bh7+ {[%emt 0:05:17]} Kh8 {[%emt 0:00:07]} 21. Bf5 {[%emt 0:00:33]} Qe7 {[%emt 0:01:14]} 22. c4 {[%emt 0:03:04]} Nxc4 {[%emt 0:04:00]} 23. Be6 {[%emt 0:02:12]} Ne5 {[%emt 0:00:57]} 24. Bb2 Bxe6 {[%emt 0:01:02]} 25. Bxe5 {[%emt 0:00:17]} Bf5 {[%emt 0:00:55]} 26. Bxg7+ {[%emt 0:01:36]} Qxg7 {[%emt 0:02:06]} 27. e4 Bg4 {[%emt 0:01:15]} 28. Qd2 {[%emt 0:00:48]} Bf6 {[%emt 0:03:49]} 29. h5 {[%emt 0:00:34]} Bg5 {[%emt 0:01:05]} 30. Ng6+ {[%emt 0:00:27]} Qxg6 {[%emt 0:00:59]} 31. hxg6 {[%emt 0:00:05]} Bxd2 {[%emt 0:00:08]} 32. Rxb7 {[%emt 0:00:04]} Rfb8 {[%emt 0:02:23]} 33. Rc7 {[%emt 0:00:23]} Rc8 {[%emt 0:00:45]} 34. Rb7 {[%emt 0:00:27]} Rab8 {[%emt 0:00:00]} 35. Rxa7 {[%emt 0:00:13]} Bf3 {[%emt 0:01:16]} 0-1

[Event "FRA-chT Top 12 2019"]
[Site "Brest"]
[Date "2019.05.23"]
[Round "6.1"]
[White "Villegas, Pierre"]
[Black "Landa, Konstantin"]
[Result "0-1"]
[ECO "D20"]
[WhiteElo "2354"]
[BlackElo "2622"]
[Annotator "RC"]
[PlyCount "84"]
[EventDate "2019.05.18"]
[EventType "team-tourn"]
[EventCountry "FRA"]
[SourceTitle "playchess.com"]
[Source "ChessBase"]
[SourceQuality "1"]
[TimeControl "40/5400+30:1800+30"]

1. d4 {[%emt 0:00:00]} d5 {[%emt 0:00:27]} 2. c4 {[%emt 0:00:00]} dxc4 {[%emt 0:00:40]} 3. e3 {[%emt 0:00:33]} e5 {[%emt 0:01:05]} 4. Bxc4 {[%emt 0:00:37]} exd4 {[%emt 0:00:05]} 5. exd4 {[%emt 0:00:04]} Bd6 {[%emt 0:00:24]} 6. Nf3 {[%emt 0:00:38]} Nf6 {[%emt 0:00:33]} 7. Qe2+ {[%emt 0:00:36]} Qe7 {[%emt 0:01:33]} 8. Qxe7+ {[%emt 0:00:09]} Bxe7 {[%emt 0:00:08]} 9. O-O {[%emt 0:00:11]} O-O {[%emt 0:01:18]} 10. Re1 {[%emt 0:04:37]} Bd6 {[%emt 0:00:21]} 11. Bg5 {[%emt 0:01:08]} a6 {[%emt 0:14:05]} 12. Nc3 {[%emt 0:11:38]} Nbd7 {[%emt 0:12:23]} 13. Bb3 {[%emt 0:09:03]} b5 {[%emt 0:00:58]} 14. Nd5 {[%emt 0:07:25]} a5 {[%emt 0:01:34]} 15. Bxf6 {[%emt 0:16:13]} Nxf6 {[%emt 0:01:05]} 16. Nxf6+ {[%emt 0:00:49]} gxf6 {[%emt 0:00:16]} 17. Bd5 {[%emt 0:03:35]} Ra6 {[%emt 0:03:00]} 18. Rac1 {[%emt 0:02:09]} Bd7 {[%emt 0:01:42]} 19. g3 {[%emt 0:07:13]} a4 {[%emt 0:07:39]} 20. Re2 {[%emt 0:07:48]} Rd8 {[%emt 0:11:03]} 21. Nd2 {[%emt 0:03:24]} Kg7 {[%emt 0:07:17]} 22. Kg2 {[%emt 0:03:18]} h6 {[%emt 0:06:15]} 23. Ne4 {[%emt 0:04:41]} f5 {[%emt 0:03:39]} 24. Nxd6 {[%emt 0:03:01]} Rxd6 {[%emt 0:00:47]} 25. Bf3 {[%emt 0:00:05]} c6 {[%emt 0:03:24]} 26. Rec2 {[%emt 0:02:29]} Rxd4 {[%emt 0:04:39]} 27. Bxc6 {[%emt 0:00:08]} Be6 {[%emt 0:01:11]} 28. Bxb5 {[%emt 0:02:46]} Bd5+ {[%emt 0:00:57]} 29. Kf1 {[%emt 0:00:06]} Be4 {[%emt 0:09:16]} 30. Rc8 {[%emt 0:03:49]} Rxc8 {[%emt 0:01:30]} 31. Rxc8 {[%emt 0:00:02]} Rb4 {[%emt 0:00:16]} 32. Be8 {[%emt 0:00:50]} Rxb2 {[%emt 0:03:56]} 33. Bxa4 {[%emt 0:00:48]} Bf3 {[%emt 0:00:32]} 34. Rc1 {[%emt 0:01:17]} Rxa2 {[%emt 0:00:09]} 35. Bc6 {[%emt 0:01:07]} Be4 {[%emt 0:01:34]} 36. Bxe4 {[%emt 0:00:37]} fxe4 {[%emt 0:00:02]} 37. Re1 {[%emt 0:01:55]} f5 {[%emt 0:00:08]} 38. g4 {[%emt 0:00:08]} fxg4 {[%emt 0:00:41]} 39. Rxe4 {[%emt 0:00:03]} h5 {[%emt 0:00:04]} 40. Kg2 {[%emt 0:01:33]} Ra3 {[%emt 0:00:18]} 41. Re3 {[%emt 0:31:00]} Rxe3 {[%emt 0:30:22]} 42. fxe3 {[%emt 0:00:01]} h4 {[%emt 0:00:07]} 0-1

[Event "FRA-chT Top 12 2019"]
[Site "Brest"]
[Date "2019.05.23"]
[Round "6.2"]
[White "Safarli, Eltaj"]
[Black "Hamitevici, Vladimir"]
[Result "0-1"]
[ECO "B12"]
[WhiteElo "2624"]
[BlackElo "2476"]
[Annotator "RC"]
[PlyCount "90"]
[EventDate "2019.05.18"]
[EventType "team-tourn"]
[EventCountry "FRA"]
[SourceTitle "playchess.com"]
[Source "ChessBase"]
[SourceQuality "1"]
[TimeControl "40/5400+30:1800+30"]

1. e4 {[%emt 0:00:00]} c6 {[%emt 0:00:00]} 2. d4 {[%emt 0:02:42]} d5 {[%emt 0:00:08]} 3. e5 {[%emt 0:00:08]} Bf5 {[%emt 0:00:06]} 4. h4 {[%emt 0:00:17]} h6 {[%emt 0:03:45]} 5. g4 {[%emt 0:01:02]} Be4 {[%emt 0:02:06]} 6. Rh3 {[%emt 0:07:56]} e6 {[%emt 0:01:25]} 7. Nc3 {[%emt 0:00:15]} Bh7 {[%emt 0:00:28]} 8. Be3 {[%emt 0:01:39]} Nd7 {[%emt 0:02:32]} 9. Qd2 {[%emt 0:07:49]} h5 {[%emt 0:08:04]} 10. f3 {[%emt 0:06:48]} c5 {[%emt 0:03:35]} 11. dxc5 {[%emt 0:05:54]} a6 {[%emt 0:04:22]} 12. Na4 {[%emt 0:05:21]} Qc7 {[%emt 0:00:37]} 13. Nb6 {[%emt 0:06:23]} Nxb6 {[%emt 0:08:27]} 14. cxb6 {[%emt 0:02:02]} Qxe5 {[%emt 0:00:06]} 15. f4 {[%emt 0:14:30]} Qd6 {[%emt 0:04:38]} 16. g5 {[%emt 0:02:17]} Bf5 {[%emt 0:11:53]} 17. Rg3 {[%emt 0:00:47]} Be4 {[%emt 0:00:13]} 18. Ne2 {[%emt 0:04:57]} Ne7 {[%emt 0:01:30]} 19. Bh3 {[%emt 0:00:12]} Rc8 {[%emt 0:06:25]} 20. c3 {[%emt 0:09:01]} Ng6 {[%emt 0:02:17]} 21. O-O-O {[%emt 0:06:53]} Nxh4 {[%emt 0:03:02]} 22. Bd4 {[%emt 0:03:25]} Rc6 {[%emt 0:11:16]} 23. Re3 {[%emt 0:06:39]} Nf3 {[%emt 0:01:46]} 24. Rxf3 {[%emt 0:00:02]} Bxf3 {[%emt 0:00:08]} 25. Re1 {[%emt 0:00:02]} Bg4 {[%emt 0:11:24]} 26. Bxg4 {[%emt 0:02:10]} hxg4 {[%emt 0:00:03]} 27. f5 {[%emt 0:00:03]} Qh2 {[%emt 0:02:42]} 28. g6 {[%emt 0:01:59]} fxg6 {[%emt 0:02:08]} 29. Bg1 {[%emt 0:00:55]} Qg2 {[%emt 0:02:21]} 30. Qg5 {[%emt 0:02:19]} Qe4 {[%emt 0:00:19]} 31. Qxg6+ {[%emt 0:00:28]} Kd7 {[%emt 0:02:50]} 32. Qf7+ {[%emt 0:00:02]} Be7 {[%emt 0:00:16]} 33. Qxg7 {[%emt 0:00:20]} Rf8 {[%emt 0:00:28]} 34. Bf2 {[%emt 0:01:11]} Qxf5 {[%emt 0:00:33]} 35. Be3 {[%emt 0:00:19]} Rf7 {[%emt 0:01:09]} 36. Qh8 {[%emt 0:00:41]} Rc8 {[%emt 0:00:40]} 37. Qd4 {[%emt 0:00:01]} Rc4 {[%emt 0:01:39]} 38. Qd2 {[%emt 0:00:59]} Bh4 {[%emt 0:00:30]} 39. Rh1 {[%emt 0:00:31]} Qe4 {[%emt 0:00:23]} 40. Rd1 {[%emt 0:00:29]} Bf2 {[%emt 0:00:47]} 41. Bxf2 {[%emt 0:05:45]} Rxf2 {[%emt 0:00:08]} 42. Re1 {[%emt 0:00:02]} Rc8 {[%emt 0:04:08]} 43. b3 {[%emt 0:03:04]} Qe5 {[%emt 0:03:05]} 44. Kd1 {[%emt 0:04:49]} Rh8 {[%emt 0:10:59]} 45. Qd3 {[%emt 0:00:43]} Rhh2 {[%emt 0:00:32]} 0-1

[Event "FRA-chT Top 12 2019"]
[Site "Brest"]
[Date "2019.05.23"]
[Round "6.2"]
[White "Brochet, Philippe"]
[Black "Naiditsch, Arkadij"]
[Result "1/2-1/2"]
[ECO "B91"]
[WhiteElo "2400"]
[BlackElo "2682"]
[Annotator "ChessBase"]
[PlyCount "83"]
[EventDate "2019.05.18"]
[EventType "team-tourn"]
[EventCountry "FRA"]
[SourceTitle "playchess.com"]
[Source "ChessBase"]
[SourceQuality "1"]
[TimeControl "40/5400+30:1800+30"]

1. e4 {[%emt 0:00:52]} c5 {[%emt 0:01:19]} 2. Nc3 {[%emt 0:01:43]} a6 {[%emt 0:00:27]} 3. Nf3 {[%emt 0:07:29]} d6 {[%emt 0:00:29]} 4. d4 {[%emt 0:00:41]} cxd4 {[%emt 0:00:10]} 5. Nxd4 {[%emt 0:00:05]} Nf6 {[%emt 0:00:07]} 6. g3 {[%emt 0:02:24]} g6 {[%emt 0:03:55]} 7. Bg2 {[%emt 0:00:58]} Bg7 {[%emt 0:00:09]} 8. O-O {[%emt 0:00:15]} O-O {[%emt 0:00:06]} 9. a4 {[%emt 0:01:33]} Bd7 {[%emt 0:03:52]} 10. Nd5 {[%emt 0:08:56]} Nc6 {[%emt 0:02:08]} 11. Nxc6 {[%emt 0:00:27]} bxc6 {[%emt 0:00:29]} 12. Nxf6+ {[%emt 0:00:49]} Bxf6 {[%emt 0:00:07]} 13. Rb1 {[%emt 0:06:18]} Rb8 {[%emt 0:00:08]} 14. Qe2 {[%emt 0:19:17]} Qc8 {[%emt 0:01:08]} 15. b3 {[%emt 0:01:40]} c5 {[%emt 0:00:19]} 16. Bf4 {[%emt 0:01:45]} Bg4 {[%emt 0:11:59]} 17. Bf3 {[%emt 0:08:18]} Bxf3 {[%emt 0:05:46]} 18. Qxf3 {[%emt 0:00:02]} Qc6 {[%emt 0:00:52]} 19. Qe2 {[%emt 0:07:10]} Rb4 {[%emt 0:00:44]} 20. f3 {[%emt 0:05:48]} Bg7 {[%emt 0:00:52]} 21. Bd2 {[%emt 0:02:40]} Rb7 {[%emt 0:07:14]} 22. c4 {[%emt 0:01:01]} Rfb8 {[%emt 0:01:12]} 23. Qd3 {[%emt 0:00:17]} Qc8 {[%emt 0:00:37]} 24. Kg2 {[%emt 0:00:52]} Qe6 {[%emt 0:00:50]} 25. Rfd1 {[%emt 0:01:09]} f5 {[%emt 0:04:56]} 26. Be1 {[%emt 0:04:52]} fxe4 {[%emt 0:02:00]} 27. fxe4 {[%emt 0:00:04]} h5 {[%emt 0:00:32]} 28. h3 {[%emt 0:02:16]} Kh7 {[%emt 0:00:38]} 29. Qe3 {[%emt 0:01:27]} Rf8 {[%emt 0:14:11]} 30. Rd3 {[%emt 0:01:14]} Bd4 {[%emt 0:03:29]} 31. Qe2 {[%emt 0:00:03]} Rbb8 {[%emt 0:00:53]} 32. Rf3 {[%emt 0:01:22]} Rf6 {[%emt 0:07:20]} 33. Rd1 {[%emt 0:01:26]} Qe5 {[%emt 0:04:06]} 34. Bd2 {[%emt 0:02:20]} h4 {[%emt 0:03:41]} 35. g4 {[%emt 0:02:46]} d5 {[%emt 0:17:28]} 36. cxd5 {[%emt 0:01:59]} c4 {[%emt 0:00:02]} 37. bxc4 {[%emt 0:02:11]} Rb2 {[%emt 0:00:02]} 38. Kh1 {[%emt 0:01:42]} Bc5 {[%emt 0:03:21]} 39. g5 {[%emt 0:01:04]} Rxf3 {[%emt 0:01:18]} 40. Qxf3 {[%emt 0:00:38]} Rb3 {[%emt 0:00:28]} 41. Qf7+ {[%emt 0:04:47]} Qg7 {[%emt 0:03:53]} 42. Qxg7+ {[%emt 0:01:33]} 1/2-1/2

[Event "FRA-chT Top 12 2019"]
[Site "Brest"]
[Date "2019.05.23"]
[Round "6.3"]
[White "Rodshtein, Maxim"]
[Black "Colin, Vincent"]
[Result "1-0"]
[ECO "E06"]
[WhiteElo "2699"]
[BlackElo "2383"]
[Annotator "ChessBase"]
[PlyCount "49"]
[EventDate "2019.05.18"]
[EventType "team-tourn"]
[EventCountry "FRA"]
[SourceTitle "playchess.com"]
[Source "ChessBase"]
[SourceQuality "1"]
[TimeControl "40/5400+30:1800+30"]

1. d4 {[%emt 0:00:00]} Nf6 {[%emt 0:00:00]} 2. c4 {[%emt 0:00:00]} e6 {[%emt 0:00:00]} 3. Nf3 {[%emt 0:00:18]} d5 {[%emt 0:00:00]} 4. g3 {[%emt 0:00:40]} Be7 {[%emt 0:00:00]} 5. Bg2 {[%emt 0:00:50]} O-O {[%emt 0:00:08]} 6. Nc3 {[%emt 0:03:32]} b6 {[%emt 0:00:36]} 7. cxd5 {[%emt 0:01:28]} exd5 {[%emt 0:00:30]} 8. O-O {[%emt 0:00:13]} Bb7 {[%emt 0:00:22]} 9. Bf4 {[%emt 0:01:17]} Na6 {[%emt 0:08:04]} 10. Rc1 {[%emt 0:00:59]} c5 {[%emt 0:00:13]} 11. Ne5 {[%emt 0:04:37]} Rb8 {[%emt 0:04:06]} 12. e3 {[%emt 0:10:15]} h6 {[%emt 0:09:59]} 13. Ng4 {[%emt 0:06:47]} Ra8 {[%emt 0:06:48]} 14. dxc5 {[%emt 0:06:15]} Nxc5 {[%emt 0:01:13]} 15. Nxf6+ {[%emt 0:07:58]} Bxf6 {[%emt 0:03:34]} 16. Nxd5 {[%emt 0:00:06]} Bxb2 {[%emt 0:07:00]} 17. Rc2 {[%emt 0:05:01]} Ba3 {[%emt 0:08:32]} 18. Bc7 {[%emt 0:02:04]} Qe8 {[%emt 0:01:23]} 19. Bd6 {[%emt 0:02:00]} Rd8 {[%emt 0:11:35]} 20. Bxf8 {[%emt 0:01:00]} Kxf8 {[%emt 0:00:18]} 21. Rd2 {[%emt 0:00:49]} Ne4 {[%emt 0:05:02]} 22. Rd4 {[%emt 0:01:25]} Nd6 {[%emt 0:03:57]} 23. Qd3 {[%emt 0:06:59]} Bc5 {[%emt 0:01:07]} 24. Qh7 {[%emt 0:00:17]} f6 {[%emt 0:01:16]} 25. Rg4 {[%emt 0:01:28]} 1-0

[Event "FRA-chT Top 12 2019"]
[Site "Brest"]
[Date "2019.05.23"]
[Round "6.3"]
[White "Demuth, Adrien"]
[Black "Van Wely, Loek"]
[Result "0-1"]
[ECO "B40"]
[WhiteElo "2517"]
[BlackElo "2600"]
[Annotator "RC"]
[PlyCount "86"]
[EventDate "2019.05.18"]
[EventType "team-tourn"]
[EventCountry "FRA"]
[SourceTitle "playchess.com"]
[Source "ChessBase"]
[SourceQuality "1"]
[TimeControl "40/5400+30:1800+30"]

1. e4 {[%emt 0:00:00]} c5 {[%emt 0:05:16]} 2. Nf3 {[%emt 0:00:00]} e6 {[%emt 0:00:40]} 3. b3 {[%emt 0:00:00]} b6 {[%emt 0:00:57]} 4. d4 {[%emt 0:00:30]} cxd4 {[%emt 0:00:36]} 5. Nxd4 {[%emt 0:00:06]} a6 {[%emt 0:05:40]} 6. Bb2 {[%emt 0:02:03]} Bb7 {[%emt 0:04:13]} 7. Nd2 {[%emt 0:00:07]} d6 {[%emt 0:01:51]} 8. c4 {[%emt 0:03:12]} Nf6 {[%emt 0:02:15]} 9. Bd3 {[%emt 0:00:31]} g6 {[%emt 0:02:29]} 10. O-O {[%emt 0:01:57]} Bg7 {[%emt 0:01:25]} 11. Qe2 {[%emt 0:01:45]} Nbd7 {[%emt 0:04:14]} 12. Rad1 {[%emt 0:01:04]} O-O {[%emt 0:01:13]} 13. Bb1 {[%emt 0:03:49]} Qc7 {[%emt 0:05:30]} 14. f4 {[%emt 0:16:21]} e5 {[%emt 0:02:17]} 15. fxe5 {[%emt 0:01:27]} Nxe5 {[%emt 0:00:12]} 16. Nc2 {[%emt 0:12:48]} Rae8 {[%emt 0:18:09]} 17. Ne3 {[%emt 0:02:16]} Ned7 {[%emt 0:00:35]} 18. Qf3 {[%emt 0:11:23]} Re7 {[%emt 0:12:10]} 19. Kh1 {[%emt 0:01:45]} Rfe8 {[%emt 0:01:53]} 20. Nd5 {[%emt 0:02:30]} Bxd5 {[%emt 0:03:17]} 21. cxd5 {[%emt 0:04:22]} Nxe4 {[%emt 0:06:56]} 22. Nxe4 {[%emt 0:11:31]} Bxb2 {[%emt 0:00:14]} 23. Qf2 {[%emt 0:00:42]} Bg7 {[%emt 0:04:23]} 24. Rc1 {[%emt 0:00:56]} Nc5 {[%emt 0:01:13]} 25. b4 {[%emt 0:03:58]} Nxe4 {[%emt 0:00:16]} 26. Bxe4 {[%emt 0:00:06]} Qd7 {[%emt 0:01:21]} 27. Bd3 {[%emt 0:03:07]} b5 {[%emt 0:05:16]} 28. Qb6 {[%emt 0:02:38]} Qg4 {[%emt 0:00:56]} 29. Qxa6 {[%emt 0:09:34]} Be5 {[%emt 0:00:14]} 30. Rf3 {[%emt 0:02:26]} Qh4 {[%emt 0:05:40]} 31. Rh3 {[%emt 0:00:29]} Qxb4 {[%emt 0:01:08]} 32. Bxb5 {[%emt 0:00:57]} Rb8 {[%emt 0:00:43]} 33. Bf1 {[%emt 0:01:07]} Qd2 {[%emt 0:01:21]} 34. Qc4 {[%emt 0:00:55]} Rb2 {[%emt 0:00:55]} 35. Rd3 {[%emt 0:00:33]} Qh6 {[%emt 0:00:39]} 36. Rh3 {[%emt 0:00:08]} Qg5 {[%emt 0:00:06]} 37. a4 {[%emt 0:00:36]} Reb7 {[%emt 0:00:23]} 38. a5 {[%emt 0:00:48]} R7b4 {[%emt 0:00:49]} 39. Qc8+ {[%emt 0:00:25]} Kg7 {[%emt 0:00:01]} 40. Rf3 {[%emt 0:00:37]} Rf4 {[%emt 0:01:23]} 41. Rg3 {[%emt 0:06:48]} Qf6 {[%emt 0:07:58]} 42. Qa6 {[%emt 0:04:17]} Rh4 {[%emt 0:03:14]} 43. Rf3 {[%emt 0:00:27]} Qxf3 {[%emt 0:00:57]} 0-1

[Event "FRA-chT Top 12 2019"]
[Site "Brest"]
[Date "2019.05.23"]
[Round "6.3"]
[White "Lefebvre, Herve"]
[Black "Karthikeyan, Murali"]
[Result "0-1"]
[ECO "B42"]
[WhiteElo "2291"]
[BlackElo "2596"]
[Annotator "RC"]
[PlyCount "52"]
[EventDate "2019.05.18"]
[EventType "team-tourn"]
[EventCountry "FRA"]
[SourceTitle "playchess.com"]
[Source "ChessBase"]
[SourceQuality "1"]
[TimeControl "40/5400+30:1800+30"]

1. e4 c5 2. Nf3 e6 3. d4 cxd4 4. Nxd4 a6 5. Bd3 Nf6 6. O-O d6 7. Qe2 g6 8. c4 Bg7 9. Nc3 Nc6 10. Nxc6 bxc6 11. b3 O-O 12. Ba3 c5 13. Bb2 Nh5 14. g3 Bd4 15. Qd2 Bb7 16. Rae1 Qa5 17. Qc2 Nf6 18. Kg2 Ng4 19. Be2 f5 20. Kg1 Nxf2 21. Rxf2 fxe4 22. Ref1 Rxf2 23. Rxf2 Rf8 24. Nd1 Qe1+ 25. Bf1 Bxf2+ 26. Nxf2 e3 0-1

[Event "FRA-chT Top 12 2019"]
[Site "Brest"]
[Date "2019.05.23"]
[Round "6.4"]
[White "Wirig, Anthony"]
[Black "Riff, Jean-Noel"]
[Result "1/2-1/2"]
[ECO "A46"]
[WhiteElo "2516"]
[BlackElo "2494"]
[Annotator "ChessBase"]
[PlyCount "41"]
[EventDate "2019.05.18"]
[EventType "team-tourn"]
[EventCountry "FRA"]
[SourceTitle "playchess.com"]
[Source "ChessBase"]
[SourceQuality "1"]
[TimeControl "40/5400+30:1800+30"]

1. d4 {[%emt 0:00:00]} Nf6 {[%emt 0:00:00]} 2. Nf3 {[%emt 0:00:00]} e6 {[%emt 0:00:00]} 3. Bg5 {[%emt 0:00:09]} c5 {[%emt 0:02:14]} 4. e3 {[%emt 0:05:46]} h6 {[%emt 0:02:16]} 5. Bh4 {[%emt 0:00:32]} Be7 {[%emt 0:02:50]} 6. Nbd2 {[%emt 0:03:37]} O-O {[%emt 0:02:45]} 7. c3 {[%emt 0:14:36]} cxd4 {[%emt 0:04:26]} 8. cxd4 {[%emt 0:01:49]} b6 {[%emt 0:02:35]} 9. Bxf6 {[%emt 0:12:44]} Bxf6 {[%emt 0:00:55]} 10. Bd3 {[%emt 0:00:11]} Bb7 {[%emt 0:03:26]} 11. O-O {[%emt 0:17:16]} d6 {[%emt 0:02:27]} 12. Qe2 {[%emt 0:01:08]} Nd7 {[%emt 0:02:52]} 13. Rac1 {[%emt 0:02:35]} Rc8 {[%emt 0:01:51]} 14. Ba6 {[%emt 0:01:22]} Bxa6 {[%emt 0:05:58]} 15. Qxa6 {[%emt 0:00:29]} Rc7 {[%emt 0:00:03]} 16. Ne4 {[%emt 0:03:16]} Be7 {[%emt 0:02:15]} 17. Rxc7 {[%emt 0:03:53]} Qxc7 {[%emt 0:00:08]} 18. Nc3 {[%emt 0:00:20]} Nb8 {[%emt 0:00:11]} 19. Qa4 {[%emt 0:08:32]} a6 {[%emt 0:01:15]} 20. Rc1 {[%emt 0:02:12]} Rc8 {[%emt 0:00:42]} 21. Qd1 {[%emt 0:05:51]} 1/2-1/2